{"text_format":"1","workbook":"xlsx","n_sheets":4,"sheets":["TheAAA","AQ","EQ","RQ"],"not_rendered":{"charts":0,"images":0,"macros":1,"external_links":0,"defined_names":25,"comments":0,"pivot_tables":0},"unopened":[],"bounds":{"document_bytes":16777216,"sheet_cells":100000,"rows_first":2000,"rows_last":500,"rows_between":2000,"halvings":0,"cell_chars":16384,"cell_head_chars":4096},"cells_cut":0,"cells_raw":0,"read":"whole","date_system":"1900"}

{"sheet":"TheAAA","index":0,"n_rows":518,"n_cols":10,"rows_kept":518,"cut":false,"hidden":false,"merged":[[454,1,455,9],[437,1,437,9],[394,1,401,9],[419,1,421,9],[343,1,348,9],[379,1,380,9],[414,7,414,10],[328,1,331,9],[237,1,239,9],[77,3,77,5],[77,6,77,9],[122,7,122,10],[309,1,310,9],[92,1,119,9],[142,1,146,9],[180,1,191,9],[255,1,256,9],[286,1,293,9],[207,1,222,9],[82,1,82,2]]}
[]
[]
[]
[]
[]
[]
[]
[]
[]
[]
[]
[]
[]
[]
[]
[]
[]
[]
[]
[]
[]
[]
[]
[]
[]
[]
[]
[]
[]
[]
[]
[]
[]
[]
[]
[]
[]
[]
[]
[null," PATIENTUPPGIFTER"]
[]
[null," Namn:","XXXXXXXX"]
[null," Kön:","man/kvinna"]
[null," Födelsedatum:","dag/månad/år"]
[null," Testdatum:","dag/månad/år"]
[null," Ålder (i år):",{"$f":"(C45-C44)/365.25","v":{"$error":"#VALUE!"}}]
[]
[]
[null," SCREENINGINSTRUMENT POÄNG"]
[]
[null," Autism Spectrum Quotient (AQ) poäng:",null,null,null,{"$f":"AQ_TOTAL","v":""},null,"Blank/Invalid",{"$f":"AQ_INV","v":50}]
[null," Max = 50, och 80% av AS patienter får 32 poäng eller mer"]
[]
[]
[]
[null,null,null,"Invalid responses:",null,{"$f":"AQ_INV","v":50}]
[]
[]
[null," Empathy Quotient (EQ) poäng:",null,null,null,{"$f":"EQ_TOTAL","v":""},null,"Blank/Invalid",{"$f":"EQ_INV","v":40}]
[null," Max = 80, och 80% of AS patienter får 30 poäng eller mindre"]
[]
[]
[]
[null,null,null,"Invalid responses:",null,{"$f":"EQ_INV","v":40}]
[]
[null,"Relatives(anhöriga) Questionnaire (RQ) score:",null,null,null,{"$f":"RQ_Total","v":""},null,"Blank/Invalid",{"$f":"RQ_INV","v":31}]
[null," Max = 31, och 87.5% utav barn med AS får 15 poäng eller mer"]
[]
[]
[]
[]
[null," CLASS CLINIC DIAGNOSTIC CRITERIA"]
[]
[]
[]
[]
[]
[null," Section","Domain","No. of symptoms required",null,null,"No. of symptoms observed"]
[null," A (max = 5)","Social",null,3,null,null,{"$f":"SUM(I125,I140,I160,I178,I205)","v":0}]
[null," B (max = 5)","Obsessions",null,3,null,null,{"$f":"SUM(I235,I253,I270,I284,I307)","v":0}]
[null," C (max = 5)","Communication",null,3,null,null,{"$f":"SUM(I326,I339,I360,I375,I392)","v":0}]
[null," D (max = 3)","Imagination",null,1,null,null,{"$f":"SUM(I417,I435,I451)","v":0}]
[null," Total (max = 18)",null,null,10,null,null,{"$f":"SUM(H79:H82)","v":0}]
[null," E - I (max = 5)","Prerequisites",null,5,null,null,{"$f":"SUM(I471,I479,I486,I495,I503)","v":0}]
[]
[]
[null," DIAGNOS"]
[]
[]
[]
[null," NOTES"]
[]
[]
[]
[]
[]
[]
[]
[]
[]
[]
[]
[]
[]
[]
[]
[]
[]
[]
[]
[]
[]
[]
[]
[]
[]
[]
[]
[]
[]
[]
[null,"A. Kvalitativt nedsatt förmåga till social interaktion"]
[]
[null,null,null,null,null,null,null,null,"YES","NO"]
[]
[]
[]
[]
[]
[]
[]
[]
[]
[]
[]
[]
[]
[]
[null,null,null,null,null,null,null,null,"YES","NO"]
[]
[]
[]
[null,{"$f":"CONCATENATE(AQ!H9,AQ!H23,AQ!H30,AQ!H52,EQ!I20)","v":""}]
[]
[]
[]
[]
[]
[]
[]
[]
[]
[]
[]
[]
[]
[]
[]
[null,null,null,null,null,null,null,null,"YES","NO"]
[]
[]
[]
[]
[]
[]
[]
[]
[]
[]
[]
[]
[]
[]
[]
[]
[]
[null,null,null,null,null,null,null,null,"YES","NO"]
[]
[]
[]
[null,{"$f":"CONCATENATE(EQ!I19,EQ!I29,EQ!I24,EQ!I34,EQ!I40,EQ!I47,EQ!I51,EQ!I52,EQ!I56,EQ!I57,EQ!I58,EQ!I60,EQ!I67)","v":""}]
[]
[]
[]
[]
[]
[]
[]
[]
[]
[]
[]
[]
[]
[]
[]
[]
[]
[]
[]
[]
[]
[]
[null,null,null,null,null,null,null,null,"YES","NO"]
[]
[]
[]
[null,{"$f":"CONCATENATE(AQ!H18,AQ!H19,AQ!H28,AQ!H35,AQ!H43,AQ!H44,AQ!H53,EQ!I16,EQ!I27,EQ!I30,EQ!I33,EQ!I43,EQ!I44,EQ!I63,EQ!I65,EQ!I66)","v":""}]
[]
[]
[]
[]
[]
[]
[]
[]
[]
[]
[]
[]
[]
[]
[]
[]
[]
[]
[]
[]
[]
[]
[]
[null,"B. Begränsade repetitiva och stereotypa beteendemönster, intressen och aktiviteter"]
[]
[null,null,null,null,null,null,null,null,"YES","NO"]
[]
[]
[]
[null,{"$f":"CONCATENATE(AQ!H12,AQ!H24,AQ!H49)","v":""}]
[]
[]
[]
[]
[]
[]
[]
[]
[]
[]
[]
[]
[]
[null,null,null,null,null,null,null,null,"YES","NO"]
[]
[]
[]
[null,{"$f":"CONCATENATE(AQ!H10,AQ!H33)","v":""}]
[]
[]
[]
[]
[]
[]
[]
[]
[]
[]
[]
[]
[null,null,null,null,null,null,null,null,"YES","NO"]
[]
[]
[]
[]
[]
[]
[]
[]
[]
[]
[]
[]
[]
[null,null,null,null,null,null,null,null,"YES","NO"]
[]
[]
[]
[null,{"$f":"CONCATENATE(AQ!H13,AQ!H14,AQ!H17,AQ!H20,AQ!H27,AQ!H31,AQ!H36,AQ!H38)","v":""}]
[]
[]
[]
[]
[]
[]
[]
[]
[]
[]
[]
[]
[]
[]
[]
[]
[]
[]
[null,null,null,null,null,null,null,null,"YES","NO"]
[]
[]
[]
[null,{"$f":"CONCATENATE(EQ!I18,EQ!I68)","v":""}]
[]
[]
[]
[]
[]
[]
[]
[]
[]
[]
[]
[]
[null,"C. Kvalitativt nedsatt förmåga av verbal eller icke-verbal kommunikation"]
[]
[null,null,null,null,null,null,null,null,"YES","NO"]
[]
[]
[]
[null,{"$f":"CONCATENATE(AQ!H47,EQ!I23,EQ!I45)","v":""}]
[]
[]
[]
[]
[]
[]
[]
[]
[null,null,null,null,null,null,null,null,"YES","NO"]
[]
[]
[]
[]
[]
[null,{"$f":"CONCATENATE(AQ!H25,AQ!H34,AQ!H41,AQ!H46,EQ!I9,EQ!I62)","v":""}]
[]
[]
[]
[]
[]
[]
[]
[]
[]
[]
[]
[]
[]
[]
[null,null,null,null,null,null,null,null,"YES","NO"]
[]
[]
[]
[]
[]
[]
[]
[]
[]
[]
[]
[]
[]
[]
[null,null,null,null,null,null,null,null,"YES","NO"]
[]
[]
[]
[]
[]
[null,{"$f":"CONCATENATE(AQ!H39,EQ!I49)","v":""}]
[]
[]
[]
[]
[]
[]
[]
[]
[]
[]
[null,null,null,null,null,null,null,null,"YES","NO"]
[]
[]
[]
[null,{"$f":"CONCATENATE(AQ!H15,AQ!H56,EQ!I22,EQ!I35,EQ!I36,EQ!I37,EQ!I42,EQ!I54)","v":""}]
[]
[]
[]
[]
[]
[]
[]
[]
[]
[]
[]
[]
[]
[]
[]
[]
[]
[]
[null,"D. Begräsad förmåga till fantasi"]
[]
[null,null,null,null,null,null,null,null,"YES","NO"]
[]
[]
[]
[null,{"$f":"CONCATENATE(AQ!H48,AQ!H50,AQ!H58)","v":""}]
[]
[]
[]
[]
[]
[]
[]
[]
[]
[]
[]
[]
[]
[null,null,null,null,null,null,null,null,"YES","NO"]
[]
[]
[]
[null,{"$f":"AQ!H22","v":""}]
[]
[]
[]
[]
[]
[]
[]
[]
[]
[]
[]
[null,null,null,null,null,null,null,null,"YES","NO"]
[]
[]
[]
[]
[null,{"$f":"CONCATENATE(AQ!H29,AQ!H32)","v":""}]
[]
[]
[]
[]
[]
[]
[]
[]
[]
[]
[]
[]
[]
[]
[null,null,null,null,null,null,null,null,"YES","NO"]
[null,"Den ovan nämnda problematiken har funnits under hela livet."]
[]
[]
[]
[]
[]
[]
[null,null,null,null,null,null,null,null,"YES","NO"]
[null,"De ovan nämnda problemen har hindrat patientens vardag genom"]
[null,"att orsaka depression, social isolering, svårigheter i arbetet och skolan, "]
[null,"och en oförmåga att förverkliga mål i livet."]
[]
[]
[]
[null,null,null,null,null,null,null,null,"YES","NO"]
[null,"Patientens språkutveckling var normal"]
[]
[]
[]
[]
[]
[]
[]
[null,null,null,null,null,null,null,null,"YES","NO"]
[null,"Det finns inga tecken på allmänna inlärningssvårigheter."]
[]
[]
[]
[]
[]
[]
[null,null,null,null,null,null,null,null,"YES","NO"]
[null,"Patienten visar inga psykotiska tecken."]
[]
[]
[]
[]
[]
[]
[]
[]
[]
[]
[]
[]
[]
[]
[null,"© PB/SBC/SW, University of Cambridge / CPFT, Nov 2011"]

{"sheet":"AQ","index":1,"n_rows":66,"n_cols":8,"rows_kept":66,"cut":false,"hidden":false,"merged":[]}
[]
[null,null,null,"Autism Spectrum Quotient Sheet"]
[]
[null,null,null,"Skriv in poäng mellan 1-4, 1 = stämmer precis, 4 = stämmer inte alls"]
[null,null,null,"Skriv en 9 för de item som inte har besvarats tydligt (t ex markerat flera svarsalternativ eller inget alls)."]
[]
[]
["AAA","Item","Score","Text",null,"Score"]
["A2",1,null,"Jag gör hellre saker med andra än på egen hand","Jag gör inte hellre saker med andra än på egen hand",{"$f":"IF(C9>4,\"INV\",IF(C9<1,\"INV\",IF(C9<3,G9,ABS(G9-1))))","v":"INV"},null,{"$f":"IF(F9=1,CONCATENATE(\"(AQ\",B9,\") \",E9,CHAR(10)),\"\")","v":""}]
["B2",2,null,"Jag föredrar att göra saker på samma sätt om och om igen.","Jag föredrar att göra saker på samma sätt om och om igen.","INV",1,{"$f":"IF(F10=1,CONCATENATE(\"(AQ\",B10,\") \",E10,CHAR(10)),\"\")","v":""}]
[null,3,null,"Om jag försöker att föreställa mig något, tycker jag att det är mycket enkelt att skapa en bild i mitt sinne.","Om jag försöker att föreställa mig något, tycker jag inte att det är mycket enkelt att skapa en bild i mitt sinne.","INV",null,""]
["B1",4,null,"Jag blir ofta så starkt absorberad i en sak så att jag glömmer andra saker.","Jag blir ofta så starkt absorberad i en sak så att jag glömmer andra saker.","INV",1,""]
["B4",5,null,"Jag märker ofta små ljud när andra inte gör det.","Jag märker ofta små ljud när andra inte gör det.","INV",1,""]
["B4",6,null,"Jag märker oftast bil registreringsskyltar eller liknande serier av information.","Jag märker oftast bil registreringsskyltar eller liknande serier av information.","INV",1,""]
["C5",7,null,"Andra människor säger ofta till mig att det jag har sagt är oartigt, även om jag tror att det är artigt.","Andra människor säger ofta till mig att det jag har sagt är oartigt, även om jag tror att det är artigt.","INV",1,""]
[null,8,null,"När jag läser en berättelse, kan jag lätt föreställa sig vad karaktärerna skulle kunna se ut.","När jag läser en berättelse, kan jag inte lätt föreställa sig vad karaktärerna skulle kunna se ut.","INV",null,""]
["B4",9,null,"Jag är fascinerad av datum.","Jag är fascinerad av datum.","INV",1,""]
["A5",10,null,"I en social grupp, kan jag lätt hålla koll på flera olika människors konversationer.","I en social grupp, kan jag inte lätt hålla koll på flera olika människors konversationer.","INV",null,""]
["A5",11,null,"Jag upplever att det är lättsamt att vara i sociala situationer ","Jag upplever inte att det är lättsamt att vara i sociala situationer ","INV",null,""]
["B4",12,null,"Jag brukar lägga märke till detaljer som andra inte märker.","Jag brukar lägga märke till detaljer som andra inte märker.","INV",1,""]
[null,13,null,"Jag skulle hellre gå till ett bibliotek än en party","Jag skulle hellre gå till ett bibliotek än en party","INV",1,""]
["D2",14,null,"Jag tycker att det är enkelt att hitta på berättelser.","Jag tycker att det är enkelt att hitta på berättelser.","INV",null,""]
["A2",15,null,"Jag dras starkare till människor än saker.","Jag dras inte starkare till människor än saker.","INV",null,""]
["B1",16,null,"Jag tenderar att ha mycket starka intressen som jag blir upprörd över om jag inte kan fullfölja.","Jag tenderar att ha mycket starka intressen som jag blir upprörd över om jag inte kan fullfölja.","INV",1,""]
["C2",17,null,"Jag tycker om socialt småprat.","Jag tycker inte om socialt småprat.","INV",null,""]
[null,18,null,"När jag pratar, är det inte alltid lätt för andra att få en syl i vädret.","När jag pratar, är det inte alltid lätt för andra att få en syl i vädret.","INV",1,""]
["B4",19,null,"Jag är fascinerad av siffror.","Jag är fascinerad av siffror.","INV",1,""]
["A5",20,null,"När jag läser en berättelse, jag tycker att det är svårt att räkna ut karaktärernas avsikter.","När jag läser en berättelse, jag tycker att det är svårt att räkna ut karaktärernas avsikter.","INV",1,""]
["D2",21,null,"Jag inte särskilt njuta av att läsa skönlitteratur.","Jag inte särskilt njuta av att läsa skönlitteratur.","INV",1,""]
["A2",22,null,"Jag tycker att det är svårt att få nya vänner.","Jag tycker att det är svårt att få nya vänner.","INV",1,""]
["B4",23,null,"Jag hittar mönster i saker hela tiden.","Jag hittar mönster i saker hela tiden.","INV",1,""]
["D2",24,null,"Jag skulle hellre gå på teater än ett museum.","Jag skulle hellre gå på teater än ett museum.","INV",null,""]
["B2",25,null,"Det spelar ingen roll om min dagliga rutin störs.","Jag ogillar om min dagliga rutin störs.","INV",null,""]
["C2",26,null,"Jag tycker ofta att jag inte vet hur man håller en konversation igång.","Jag tycker ofta att jag inte vet hur man håller en konversation igång.","INV",1,""]
["A5",27,null,"Jag tycker att det är lätt att \"läsa mellan raderna\" när någon pratar med mig.","Jag tycker inte att det är lätt att \"läsa mellan raderna\" när någon pratar med mig.","INV",null,""]
["B4",28,null,"Jag brukar koncentrera sig mer på helheten, snarare än de små detaljerna.","Jag brukar inte koncentrera sig mer på helheten, snarare än de små detaljerna.","INV",null,""]
[null,29,null,"Jag är inte särskilt bra på att komma ihåg telefonnummer.","Jag är bra på att komma ihåg telefonnummer.","INV",null,""]
["B4",30,null,"Jag brukar inte märka små förändringar i en situation, eller en persons utseende.","Jag brukar märka små förändringar i en situation, eller en persons utseende.","INV",null,""]
["C4",31,null,"Jag upptäcker om någon lyssnar på mig eller är uttråkad.","Jag upptäcker om någon lyssnar på mig eller är uttråkad.","INV",null,""]
[null,32,null,"Jag tycker att det är lätt att göra mer än en sak samtidigt.","Jag tycker inte att det är lätt att göra mer än en sak samtidigt.","INV",null,""]
["C2",33,null,"När jag pratar i telefon, är jag inte säker på när det är min tur att tala.","När jag pratar i telefon, är jag inte säker på när det är min tur att tala.",{"$f":"IF(C41>4,\"INV\",IF(C41<1,\"INV\",IF(C41<3,G41,ABS(G41-1))))","v":"INV"},1,""]
[null,34,null,"Jag tycker om att göra saker spontant.","Jag tycker inte om att göra saker spontant.","INV",null,""]
["A5",35,null,"Jag är ofta den sista att förstå poängen med ett skämt.","Jag är ofta den sista att förstå poängen med ett skämt.","INV",1,""]
["A5",36,null,"Jag tycker att det är lätt att räkna ut vad någon tänker eller känner genom att bara titta på deras ansikte.","Jag tycker inte att det är lätt att räkna ut vad någon tänker eller känner genom att bara titta på deras ansikte.","INV",null,""]
[null,37,null,"Om det blir ett avbrott, kan jag gå tillbaka till vad jag gjorde mycket snabbt.","Om det blir ett avbrott, kan jag inte gå tillbaka till vad jag gjorde mycket snabbt.","INV",null,""]
["C2",38,null,"Jag är bra på sociala småprat.","Jag är inte bra på socialt småprat.","INV",null,""]
["C1",39,null,"Folk säger ofta att jag fortsätta på och om samma sak.","Folk säger ofta att jag fortsätta på och om samma sak.","INV",1,""]
["D1",40,null,"När jag var liten, brukade jag gilla att leka låtsaslekar med andra barn.","När jag var liten, brukade jag inte gilla att leka låtsaslekar med andra barn.","INV",null,""]
["B1",41,null,"Jag gillar att samla information om kategorier av saker (t ex olika bilmärken, fågelsorter, typer av tåg, typer av anläggningar, etc.).","Jag gillar att samla information om kategorier av saker (t ex olika bilmärken, fågelsorter, typer av tåg, typer av anläggningar, etc.).","INV",1,""]
["D1",42,null,"Jag har svårt att föreställa sig hur det skulle vara att vara någon annan.","Jag har svårt att föreställa sig hur det skulle vara att vara någon annan.","INV",1,""]
[null,43,null,"Jag gillar att planera alla aktiviteter jag deltar i noggrant.","Jag gillar att planera alla aktiviteter jag deltar i noggrant.","INV",1,""]
["A2",44,null,"Jag tycker om sociala tillställningar.","Jag tycker inte om sociala tillställningar.","INV",null,""]
["A5",45,null,"Jag tycker att det är svårt att räkna ut folks intentioner.","Jag tycker att det är svårt att räkna ut folks intentioner.","INV",1,""]
[null,46,null,"Nya situationer gör mig orolig.","Nya situationer gör mig orolig.","INV",1,""]
[null,47,null,"Jag tycker om att träffa nya människor.","Jag tycker inte om att träffa nya människor.","INV",null,""]
["C5",48,null,"Jag är en god diplomat.","Jag är inte en god diplomat.","INV",null,""]
[null,49,null,"Jag är inte särskilt bra på att komma ihåg folks födelsedatum.","Jag är bra på att komma ihåg folks födelsedatum.","INV",null,""]
["D1",50,null,"Jag tycker att det är väldigt lätt att leka lekar med barn som involverar att man låtsas.","Jag tycker inte att det är väldigt lätt att leka lekar med barn som involverar att man låtsas.","INV",null,""]
[]
[]
[null,null,null,null,null,{"$f":"COUNTIF(F9:F58,\"=INV\")","v":50},null,"Invalid(s)"]
[null,null,null,null,null,{"$f":"COUNTIF(F9:F58,\"=0\")","v":0},null,"Against AS"]
[null,null,null,null,null,{"$f":"COUNTIF(F9:F58,\"=1\")","v":0},null,"For AS"]
[]
[null,null,null,null,null,{"$f":"IF(AQ_INV<50,F63,\"\")","v":""},null,"Score"]
[null,null,null,null,null,null,null,"NB - 5+ items invalid, the tool cannot be scored"]

{"sheet":"EQ","index":2,"n_rows":74,"n_cols":13,"rows_kept":74,"cut":false,"hidden":false,"merged":[]}
[]
[null,null,null,null,"Empathy Quotient Sheet"]
[]
[null,null,null,null,"Skriv in poäng mellan 1-4, 1 = stämmer precis, 4 = stämmer inte alls"]
[null,null,null,null,"Skriv en 9 för de item som inte har besvarats tydligt (t ex markerat flera svarsalternativ eller inget alls)."]
[null,null,null,null,"Itemnumren för den förkortade 40-item versionen av EQ ges i kolumn B.Itemnumren för den förkortade 40-item versionen av EQ ges i kolumn B."]
[]
["EQ40","EQ40 Item","EQ Item","Score","Text"]
[1,1,1,null,"Jag kan lätt säga om någon annan vill delta i en konversation.","Jag kan inte lätt säga om någon annan vill delta i en konversation.",{"$f":"IF(D9=1,J9,IF(D9=2,K9,IF(D9=3,L9,IF(D9=4,M9,\"INV\"))))","v":"INV"},null,{"$f":"IF(G9=0,CONCATENATE(\"(EQ\",C9,\") \",F9,CHAR(10)),\"\")","v":""},2,1]
[null,null,2,null,"Jag föredrar djur istället för människor.",null,"-",null,{"$f":"IF(G10=0,CONCATENATE(\"(EQ\",C10,\") \",F10,CHAR(10)),\"\")","v":""}]
[null,null,3,null,"Jag försöker att hålla jämna steg med de aktuella trenderna och modet.",null,"-",null,""]
[2,2,4,null,"Jag tycker att det är svårt att förklara för andra, när de inte förstår det första gången.","Jag tycker att det är svårt att förklara för andra, när de inte förstår det första gången.",{"$f":"IF(D12=1,J12,IF(D12=2,K12,IF(D12=3,L12,IF(D12=4,M12,\"INV\"))))","v":"INV"},null,"",null,null,1,2]
[null,null,5,null,"Jag drömmer de flesta nätter.",null,"-",null,""]
[3,3,6,null,"Jag tycker verkligen om att ta hand om andra människor.","Jag tycker verkligen inte om att ta hand om andra människor.","INV",null,"",2,1]
[null,null,7,null,"Jag försöker att lösa mina egna problem snarare än att diskutera dem med andra.",null,"-",null,""]
[4,4,8,null,"Jag tycker att det är svårt att veta vad man ska göra i en social situation.","Jag tycker att det är svårt att veta vad man ska göra i en social situation.","INV",null,"",null,null,1,2]
[null,null,9,null,"Jag är på mitt bästa humör på morgonen.",null,"-",null,""]
[5,5,10,null,"Folk säger ofta att jag gick för långt i att argumentera min sak i en diskussion.","Folk säger ofta att jag gick för långt i att argumentera min sak i en diskussion.","INV",null,"",null,null,1,2]
[6,6,11,null,"Det stör mig inte alltför mycket om jag är sen till ett möte med en vän.","Det stör mig inte alltför mycket om jag är sen till ett möte med en vän.","INV",null,"",null,null,1,2]
[7,7,12,null,"Vänskap och relationer är alldeles för svårt, så jag brukar inte bry mig om det.","Vänskap och relationer är alldeles för svårt, så jag brukar inte bry mig om det.","INV",null,"",null,null,1,2]
[null,null,13,null,"Jag skulle aldrig bryta mot lagen.",null,"-",null,""]
[8,8,14,null,"Jag tycker ofta att det är svårt att bedöma om någon är oförskämd eller artig.","Jag tycker ofta att det är svårt att bedöma om någon är oförskämd eller artig.","INV",null,"",null,null,1,2]
[9,9,15,null,"I ett samtal, brukar jag fokusera på mina egna tankar snarare än på vad min lyssnare kanske tänker.","I ett samtal, brukar jag fokusera på mina egna tankar snarare än på vad min lyssnare kanske tänker.","INV",null,"",null,null,1,2]
[null,null,16,null,"Jag föredrar practical jokes före verbal humor.",null,"-",null,""]
[null,null,17,null,"Jag lever livet för idag snarare än framtiden.",null,"-",null,""]
[10,10,18,null,"När jag var ett barn, gillade jag att skära upp maskar för att se vad som skulle hända.","När jag var ett barn, gillade jag att skära upp maskar för att se vad som skulle hända.","INV",null,"",null,null,1,2]
[11,11,19,null,"Jag kan snabbt uppfatta situationen om någon säger en sak men gör en annan.","Jag kan inte snabbt uppfatta situationen om någon säger en sak men gör en annan.","INV",null,"",2,1]
[null,null,20,null,"Jag tenderar att ha mycket starka åsikter om moral",null,"-",null,""]
[12,12,21,null,"Det är svårt för mig att se varför vissa saker stör andra människor så mycket","Det är svårt för mig att se varför vissa saker stör andra människor så mycket","INV",null,"",null,null,1,2]
[13,13,22,null,"Jag tycker att det är lätt att föreställa mig någon annans situation.","Jag tycker inte att det är lätt att föreställa mig någon annans situation.","INV",null,"",2,1]
[null,null,23,null,"Jag tror att gott uppförande är det viktigaste en förälder kan lära sina barn.",null,"-",null,""]
[null,null,24,null,"Jag tycker om att göra saker i stundens ingivelse.",null,"-",null,""]
[14,14,25,null,"Jag är bra på att förutsäga hur någon kommer att känna.","Jag är inte bra på att förutsäga hur någon kommer att känna.","INV",null,"",2,1]
[15,15,26,null,"Jag är snabb att upptäcka när någon i en grupp känner sig pinsamma eller obekväma ","Jag är inte snabb att upptäcka när någon i en grupp känner sig pinsamma eller obekväma ","INV",null,"",2,1]
[16,16,27,null,"Om jag säger något som någon annan blir kränkt av, tänker jag att det är deras problem, inte mitt.","Om jag säger något som någon annan blir kränkt av, tänker jag att det är deras problem, inte mitt.","INV",null,"",null,null,1,2]
[17,17,28,null,"Om någon frågade mig om jag gillar deras frisyr, skulle jag svara sanningsenligt, även om jag inte gillar det.","Om någon frågade mig om jag gillar deras frisyr, skulle jag svara sanningsenligt, även om jag inte gillar det.","INV",null,"",null,null,1,2]
[18,18,29,null,"Jag kan inte alltid förstå varför någon skulle ha känt sig förolämpad av en kommentar.","Jag kan inte alltid förstå varför någon skulle ha känt sig förolämpad av en kommentar.","INV",null,"",null,null,1,2]
[null,null,30,null,"Folk säger ofta att jag är mycket oförutsägbar.",null,"-",null,""]
[null,null,31,null,"Jag tycker om att vara i centrum för uppmärksamheten på sociala tillställningar.",null,"-",null,""]
[19,19,32,null,"Att se människor gråta stör  verkligen inte mig.","Att se människor gråta stör  verkligen inte mig.","INV",null,"",null,null,1,2]
[null,null,33,null,"Jag tycker om att ha diskussioner om politik.",null,"-",null,""]
[20,20,34,null,"Jag är mycket rakt på sak, vilket vissa människor tolkar som elakhet, även om detta inte är oavsiktlig.","Jag är mycket rakt på sak, vilket vissa människor tolkar som elakhet, även om detta inte är oavsiktlig.","INV",null,"",null,null,1,2]
[21,21,35,null,"Jag brukar inte tycka att sociala situationer är förvirrande","Jag brukar tycka att sociala situationer är förvirrande","INV",null,"",2,1]
[22,22,36,null,"Andra människor säger att jag är bra på att förstå vad de känner och vad de tänker.","Andra människor säger att jag inte är bra på att förstå vad de känner och vad de tänker.","INV",null,"",2,1]
[23,23,37,null,"När jag pratar med folk, tenderar jag att prata om deras upplevelser istället för mina egna.","När jag pratar med folk, tenderar jag att inte prata om deras upplevelser istället för mina egna.","INV",null,"",2,1]
[24,24,38,null,"Det upprör mig att se djur som lider.","Det upprör mig inte att se djur som lider.","INV",null,"",2,1]
[25,25,39,null,"Jag kan fatta beslut utan att påverkas av människors känslor.","Jag kan fatta beslut utan att påverkas av människors känslor.","INV",null,"",null,null,1,2]
[null,null,40,null,"Jag kan inte slappna av förrän jag har gjort allt jag hade planerat att göra den dagen.",null,"-",null,""]
[26,26,41,null,"Jag kan lätt säga om någon annan är intresserad eller uttråkad av vad jag säger.","Jag kan inte lätt säga om någon annan är intresserad eller uttråkad av vad jag säger.","INV",null,"",2,1]
[27,27,42,null,"Jag blir upprörd om jag ser människor som lider på ett nyhetsprogram.","Jag blir inte upprörd om jag ser människor som lider på ett nyhetsprogram.","INV",null,"",2,1]
[28,28,43,null,"Vänner brukar prata med mig om sina problem (och de säger att jag är mycket förstående).","Vänner brukar inte prata med mig om sina problem (och de säger inte att jag är mycket förstående).","INV",null,"",2,1]
[29,29,44,null,"Jag kan känna om jag inkräktar, även om den andra personen inte säger att jag gör det.","Jag kan inte känna om jag inkräktar, om den andra personen inte säger att jag gör det.","INV",null,"",2,1]
[null,null,45,null,"Jag börjar ofta nya hobbies men snabbt blir uttråkad med dem och gå vidare till något annat.",null,"-",null,""]
[30,30,46,null,"Folk säger ibland att jag har gått för långt med att retas.","Folk säger ibland att jag har gått för långt med att retas.","INV",null,"",null,null,1,2]
[null,null,47,null,"Jag skulle vara alltför nervös för att åka en stor berg- och dalbana.",null,"-",null,""]
[31,31,48,null,"Andra människor säger ofta att jag är okänslig, även om jag inte alltid förstår varför.","Andra människor säger ofta att jag är okänslig, även om jag inte alltid förstår varför.","INV",null,"",null,null,1,2]
[32,32,49,null,"Om jag ser en främling i en grupp, tänker jag att det är upp till dem att anstränga sig för att ansluta sig.","Om jag ser en främling i en grupp, tänker jag att det är upp till dem att anstränga sig för att ansluta sig.","INV",null,"",null,null,1,2]
[33,33,50,null,"Jag stänger vanligtvis av känslomässigt när jag tittar på en film.","Jag stänger vanligtvis av känslomässigt när jag tittar på en film.","INV",null,"",null,null,1,2]
[null,null,51,null,"Jag gillar att vara mycket organiserad i det dagliga livet och gör ofta listor över de sysslor jag måste göra.",null,"-",null,""]
[34,34,52,null,"Jag kan sätta mig in i hur någon annan känner snabbt och intuitivt.","Jag kan inte sätta mig in i hur någon annan känner snabbt och intuitivt.","INV",null,"",2,1]
[null,null,53,null,"Jag tycker inte om att ta risker.",null,"-",null,""]
[35,35,54,null,"Jag kan lätt räkna ut vad en annan person kanske vill prata om.","Jag kan inte lätt räkna ut vad en annan person kanske vill prata om.","INV",null,"",2,1]
[36,36,55,null,"Jag kan upptäcka om någon maskerar sina verkliga känslor.","Jag kan inte upptäcka om någon maskerar sina verkliga känslor.","INV",null,"",2,1]
[null,null,56,null,"Innan jag tar beslut överväger jag alltid för- och nackdelar.",null,"-",null,""]
[37,37,57,null,"Jag kommer inte medvetet underfund med regler/koder för sociala situationer.","Jag kommer medvetet underfund med regler/koder för sociala situationer.","INV",null,"",2,1]
[38,38,58,null,"Jag är bra på att förutsäga vad någon kommer att göra.","Jag är inte bra på att förutsäga vad någon kommer att göra.","INV",null,"",2,1]
[39,39,59,null,"Jag tenderar att bli känslomässigt involverad i en väns problem.","Jag tenderar inte att bli känslomässigt involverad i en väns problem.","INV",null,"",2,1]
[40,40,60,null,"Jag kan oftast uppskatta den andra personens synvinkel, även om jag inte håller med om det.","Jag kan oftast inte uppskatta den andra personens synvinkel, även om jag inte håller med om det.","INV",null,"",2,1]
[]
[]
[null,null,null,null,null,null,{"$f":"COUNTIF(G9:G68,\"=INV\")","v":40},null,"Invalid(s)"]
[]
[null,null,null,null,null,null,{"$f":"IF(EQ_INV<40,SUM(G9:G68)+EQ_INV,\"\")","v":""},null,"Score"]
[null,null,null,null,null,null,null,null,"NB - 5+ items invalid, the tool cannot be scored"]

{"sheet":"RQ","index":3,"n_rows":48,"n_cols":9,"rows_kept":48,"cut":false,"hidden":false,"merged":[]}
[]
[null,null,"Relatives Questionnaire (CAST)"]
[]
[null,null,"Ange antingen Y eller N (Yes eller No) för varje item."]
[null,null,"Skriv en 9 för de item som inte har besvarats tydligt (t ex markerat flera svarsalternativ eller inget alls)."]
[]
[]
["Item","Y/N","Text"]
[1,null,"Har han / hon haft lätt för att vara med och spela spel tillsammans med andra barn?",null,{"$f":"IF(B9=H9,1,IF(B9=I9,0,\"INV\"))","v":"INV"},null,null,"N","Y"]
[2,null,"Kom han / hon upp till dig spontant för att prata?",null,{"$f":"IF(B10=H10,1,IF(B10=I10,0,\"INV\"))","v":"INV"},null,null,"N","Y"]
[3,null,"Pratade han / hon vid 2 års ålder?",null,null,null,null,null,""]
[4,null,"Tyckte han / hon om sport?",null,null,null,null,null,""]
[5,null,"Var det viktigt för honom / henne att passa in med jämnåriga?",null,"INV",null,null,"N","Y"]
[6,null,"Har han / hon verkat lägga märke till ovanliga detaljer som andra missar?",null,"INV",null,null,"Y","N"]
[7,null,"Har han / hon tenderat att ta saker bokstavligt?",null,"INV",null,null,"Y","N"]
[8,null,"När han / hon var 3 år gammal, tillbringade han / hon mycket tid med låtsaslekar (t.ex. agerade superhjälte, eller hadde nalle tebjudningar)?",null,"INV",null,null,"N","Y"]
[9,null,"Har han / hon tyckt om att göra saker om och om igen, på samma sätt hela tiden?",null,"INV",null,null,"Y","N"]
[10,null,"Har han / hon tyckt att det är lätt att samspela med andra barn?",null,"INV",null,null,"N","Y"]
[11,null,"Kunde han / hon hålla en tvåvägskommunikation?",null,"INV",null,null,"N","Y"]
[12,null,"Kunde han / hon läsa utifrån vad som var förväntat för hans / hennes ålder?",null,null,null,null,null,""]
[13,null,"Har han / hon oftast haft samma intressen som hans / hennes jämnåriga?",null,"INV",null,null,"N","Y"]
[14,null,"Har han / hon haft ett intresse som tar upp så mycket tid att han / hon inte gjorde så mycket annat?",null,"INV",null,null,"Y","N"]
[15,null,"Har han / hon haft vänner, snarare än bara bekanta?",null,"INV",null,null,"N","Y"]
[16,null,"Har han / hon ofta hämtat dig saker han / hon varit intresserad av att visa dig?",null,"INV",null,null,"N","Y"]
[17,null,"Har han / hon gillat att \"skoja runt\"?",null,"INV",null,null,"N","Y"]
[18,null,"Har han / hon haft svårt att förstå reglerna för artigt beteende?",null,"INV",null,null,"Y","N"]
[19,null,"Har han / hon verkat ha ett ovanligt minne för detaljer?",null,"INV",null,null,"Y","N"]
[20,null,"Var hans / hennes röst ovanlig (t ex alltför vuxen, platt, eller mycket monoton)?",null,"INV",null,null,"Y","N"]
[21,null,"Var människor viktigt för honom / henne?",null,"INV",null,null,"N","Y"]
[22,null,"Kunde han / hon klä sig själv?",null,null,null,null,null,""]
[23,null,"Var han / hon bra på turtagning i samtal?",null,"INV",null,null,"N","Y"]
[24,null,"Har han / hon lekt fantasilekar med andra barn, och deltagit i rollspel?",null,"INV",null,null,"N","Y"]
[25,null,"Har han / hon ofta gjort eller sagt saker som är taktlöst eller socialt olämpligt?",null,"INV",null,null,"Y","N"]
[26,null,"Kunde han / hon räkna till 50 utan att missa några siffror?",null,null,null,null,null,""]
[27,null,"Hade han / hon  normal ögonkontakt?",null,"INV",null,null,"N","Y"]
[28,null,"Hade han / hon några ovanliga och repetitiva rörelser?",null,"INV",null,null,"Y","N"]
[29,null,"Var hans / hennes sociala beteende mycket ensidigt och alltid på hans / hennes egna villkor?",null,"INV",null,null,"Y","N"]
[30,null,"Har han / hon ibland sagt \"du\" eller \"han / hon\" när han / hon menade \"jag\"?",null,"INV",null,null,"Y","N"]
[31,null,"Har han / hon föredragit fantasifulla aktiviteter såsom hitta-på-lekar eller sagoberättande, snarare än siffror eller listor av fakta?",null,"INV",null,null,"N","Y"]
[32,null,"Har han / hon ibland förlorat lyssnaren på grund av att han / hon inte förklarat vad han / hon talade om?",null,"INV",null,null,"Y","N"]
[33,null,"Kunde han / hon cykla (även om med stabilisatorer)?",null,null,null,null,null,""]
[34,null,"Gjorde han / hon försök att införa rutiner på honom / henne själv, eller på andra, på ett sådant sätt att det orsakar problem?",null,"INV",null,null,"Y","N"]
[35,null,"Har han / hon brytt sig om hur han / hon uppfattades av resten av gruppen?",null,"INV",null,null,"N","Y"]
[36,null,"Har han / hon ofta vänt samtal till hans / hennes favoritämne snarare än att följa vad den andra personen vill tala om?",null,"INV",null,null,"Y","N"]
[37,null,"Har han / hon haft udda eller ovanliga fraser?",null,"INV",null,null,"Y","N"]
[]
[null,null,null,null,{"$f":"COUNTIF(E9:E45,\"=INV\")","v":31},"Blank/invalid"]
[null,null,null,null,{"$f":"IF(E47<31,SUM(E9:E45),\"\")","v":""},"Score"]